bitfinex/quotes_ETHUSD_20260121
["timestamp","ask_amount","ask_price","bid_price","bid_amount"]
[1769030230832,5.06450092,3033.6,3031.8,7.99690994]
[1769030231020,5.06450092,3033.6,3031.9,3.29816621]
[1769030231222,5.06450092,3033.6,3032.0,4.6985973]
[1769030231464,6.32627216,3033.5,3032.0,4.6985973]
[1769030231751,4.83093062,3033.4,3032.0,4.6985973]
[1769030232484,4.83093062,3033.2,3031.4,4.6985973]
[1769030233220,4.83093062,3033.2,3031.5,3.29863309]
[1769030233421,4.83093062,3033.2,3031.6,4.6985973]
[1769030233623,1.14244097,3033.1,3031.6,4.6985973]
[1769030233831,5.97337159,3033.1,3031.6,4.6985973]
[1769030234375,6.59413122,3033.0,3031.6,4.6985973]
[1769030235037,6.59413122,3033.0,3031.7,4.6985973]
[1769030235238,4.83093062,3032.9,3031.4,4.6985973]
[1769030235468,4.83093062,3032.9,3031.0,3.29915374]
[1769030235469,4.83093062,3032.8,3031.0,3.29915374]
[1769030235669,4.83093062,3032.8,3030.8,3.29936559]
[1769030235670,4.83093062,3032.8,3031.3,4.6985973]
[1769030235839,0.60876809,3032.7,3031.4,4.6985973]
[1769030236155,0.60876809,3032.7,3031.6,4.6985973]
[1769030236362,1.25675028,3032.9,3031.7,4.6985973]
[1769030236659,1.25675028,3032.9,3031.9,4.6985973]
[1769030237030,3.29645062,3033.6,3031.9,4.6985973]
[1769030237427,6.59290124,3033.6,3031.9,4.6985973]
[1769030237727,3.29645062,3033.6,3031.9,4.6985973]
[1769030237934,6.32,3033.7,3031.9,4.6985973]
[1769030238164,0.002,3034.0,3031.9,5.34198215]
[1769030238465,0.002,3034.0,3032.6,4.6985973]
[1769030240431,0.002,3034.0,3032.8,4.6985973]
[1769030241962,4.83293062,3034.0,3032.5,4.6985973]
[1769030242259,5.31422368,3033.9,3032.5,4.6985973]
[1769030242562,3.29619618,3033.8,3032.6,4.6985973]
[1769030242858,6.59239236,3033.8,3032.6,4.6985973]
[1769030243063,11.42332298,3033.8,3032.6,4.6985973]
[1769030243273,1.1906616,3033.7,3032.3,4.6985973]
[1769030243657,6.02159222,3033.7,3032.0,4.6985973]
[1769030243836,6.02159222,3033.7,3032.1,7.99663348]
[1769030244035,6.02159222,3033.7,3032.2,4.6985973]
[1769030244368,6.4219487,3033.6,3032.2,4.6985973]
[1769030244568,6.59304432,3033.5,3032.2,4.6985973]
[1769030244931,4.83093062,3033.4,3031.9,4.6985973]
[1769030245226,4.83093062,3033.3,3031.9,4.6985973]
[1769030246460,1.3014993,3033.4,3032.1,4.6985973]
[1769030246761,3.29673952,3033.3,3032.1,4.6985973]
[1769030246959,6.59347904,3033.3,3032.1,4.6985973]
[1769030247261,0.78949783,3033.2,3032.1,4.6985973]
[1769030247571,1.3014993,3033.4,3032.3,4.6985973]
[1769030247866,3.29623303,3033.8,3032.3,4.6985973]
[1769030248858,6.59406462,3034.0,3032.5,4.6985973]
[1769030249779,3.29800453,3034.0,3032.5,4.6985973]
[1769030250140,4.83093062,3033.9,3032.5,4.6985973]
[1769030250763,3.29619618,3033.8,3032.5,4.6985973]
[1769030251168,3.29609787,3033.9,3032.6,4.79944134]
[1769030251855,6.59219574,3033.9,3032.6,4.79944134]
[1769030252847,3.29609787,3033.9,3032.6,4.79944134]
[1769030253042,0.002,3034.0,3032.7,8.0968331]
[1769030253353,0.002,3034.0,3032.8,5.9388743]
[1769030254065,4.72282636,3033.9,3032.5,4.79944134]
[1769030254269,4.72282636,3033.9,3032.6,3.29748845]
[1769030254441,0.002,3034.0,3032.7,4.79944134]
[1769030254644,4.72482636,3034.0,3032.7,4.79944134]
[1769030255373,6.59217508,3033.9,3032.7,4.79944134]
[1769030256244,4.72482636,3033.7,3032.4,4.79944134]
[1769030256451,4.72482636,3033.7,3032.1,4.79944134]
[1769030256651,4.72282636,3033.5,3032.1,5.60920703]
[1769030256969,4.72282636,3033.5,3032.2,4.79944134]
[1769030257843,6.59326168,3033.4,3032.2,4.79944134]
[1769030258250,11.31608804,3033.4,3032.2,4.79944134]
[1769030259663,4.72282636,3033.3,3032.1,0.80976569]
[1769030259843,3.29684821,3033.2,3032.1,5.60920703]
[1769030260173,11.31652278,3033.2,3032.1,5.60920703]
[1769030260671,1.1316088,3033.3,3032.1,8.09747932]
[1769030260875,6.322,3033.7,3032.2,4.79944134]
[1769030261076,9.61832763,3033.7,3032.2,4.79944134]
[1769030261856,12.91465526,3033.7,3032.2,4.79944134]
[1769030262178,9.61832763,3033.7,3032.4,4.79944134]
[1769030263482,9.61832763,3033.7,3032.5,4.79944134]
[1769030263689,1.29145614,3033.6,3032.6,5.60914703]
[1769030264970,3.29591556,3034.1,3032.6,5.60914703]
[1769030264971,0.002,3034.3,3032.6,6.15933682]
[1769030265182,3.2946758,3035.2,3032.9,4.89782619]
[1769030265384,3.2946758,3035.2,3033.1,4.79944134]
[1769030265700,0.002,3035.3,3033.3,4.79944134]
[1769030265890,3.29657523,3035.3,3033.3,4.79944134]
[1769030266067,3.29657523,3035.3,3033.5,4.79944134]
[1769030266068,0.002,3035.3,3033.5,4.79944134]
[1769030266270,0.002,3035.3,3033.8,4.79944134]
[1769030267171,0.002,3035.3,3033.8,5.4524861]
[1769030267372,0.002,3035.6,3034.2,4.79944134]
[1769030267602,0.002,3035.6,3034.4,4.79944134]
[1769030267801,0.002,3035.6,3034.6,4.79944134]
[1769030268012,3.2931938,3036.6,3034.7,4.79944134]
[1769030268279,0.09838485,3037.4,3035.3,4.79944134]
[1769030268499,4.82121121,3037.4,3035.3,4.79944134]
[1769030268689,0.48212112,3037.3,3035.5,4.79944134]
[1769030269418,4.72282636,3036.9,3035.3,4.79944134]
[1769030269711,4.82121121,3036.9,3035.4,4.79944134]
[1769030270042,3.29196431,3037.7,3035.6,4.79944134]
[1769030270225,6.58392862,3037.7,3035.6,4.79944134]
[1769030270383,0.65839286,3037.6,3035.8,4.79944134]
[1769030270590,0.002,3036.9,3035.8,4.79944134]
[1769030271017,0.09838485,3038.1,3035.7,1.13881281]
[1769030271018,0.0141372,3038.6,3036.2,4.79944134]
[1769030271338,0.0141372,3038.6,3036.1,0.09838485]
[1769030271339,0.0141372,3038.6,3037.6,4.79944134]
[1769030271508,0.0141372,3038.6,3036.3,9.61312812]
[1769030271509,3.3051453,3038.6,3037.2,4.79944134]
[1769030271708,0.0141372,3038.6,3037.2,4.79944134]
[1769030271907,6.59611847,3038.6,3037.2,4.79944134]
[1769030272118,3.30512647,3038.6,3037.3,3.2923938]
[1769030272434,0.34035113,3038.5,3036.5,4.79944134]
[1769030272734,0.34035113,3038.5,3037.5,4.79944134]
[1769030273350,6.59617298,3038.6,3037.5,4.79944134]
[1769030273705,3.30515509,3038.6,3037.5,4.79944134]
[1769030274603,6.59617298,3038.6,3037.5,4.79944134]
[1769030275617,4.72282636,3038.5,3036.8,4.79944134]
[1769030275812,1.46100172,3038.4,3036.8,4.79944134]
[1769030276402,1.46100172,3038.4,3035.6,7.15636505]
[1769030276403,4.82121121,3038.1,3036.4,4.79944134]
[1769030276603,4.72282636,3038.1,3036.5,4.79944134]
[1769030276912,0.09838485,3038.3,3036.6,4.79944134]
[1769030277638,6.5828451,3038.2,3036.6,4.79944134]
[1769030277936,0.668123,3038.1,3036.7,5.60870888]
[1769030278247,0.0141372,3038.6,3036.7,5.60870888]
[1769030278421,3.30516931,3038.6,3036.7,5.60870888]
[1769030278616,6.59620142,3038.6,3036.7,5.60870888]
[1769030278801,9.88723353,3038.6,3036.7,5.60870888]
[1769030279341,9.98561838,3038.6,3036.7,5.60870888]
[1769030279509,1.47084447,3038.5,3036.9,5.03410417]
[1769030279837,9.87361767,3038.4,3036.9,5.03410417]
[1769030280139,3.28998484,3039.6,3037.7,5.03410417]
[1769030280346,3.28904091,3040.4,3038.0,5.03410417]
[1769030280503,3.28904091,3040.4,3037.8,1.58237353]
[1769030280504,4.02287059,3040.5,3038.4,5.03410417]
[1769030280839,4.02287059,3040.5,3038.5,5.03410417]
[1769030280840,0.73390554,3040.5,3038.5,5.03410417]
[1769030281145,0.73390554,3040.5,3038.5,5.57810417]
[1769030281306,0.73390554,3040.5,3038.7,4.65802064]
[1769030281836,0.73390554,3040.5,3038.9,4.65802064]
[1769030282022,0.09838485,3040.4,3038.9,4.65802064]
[1769030282604,0.002,3039.9,3038.9,4.65802064]
[1769030283315,0.002,3039.9,3038.6,3.84875898]
[1769030283522,0.002,3039.9,3038.8,4.65802064]
[1769030283846,0.002,3039.9,3038.7,3.67568938]
[1769030283847,0.73390554,3040.5,3039.1,4.65802064]
[1769030284560,0.73390554,3040.5,3039.3,4.65802064]
[1769030284852,0.00188749,3041.6,3039.2,0.09838485]
[1769030284853,3.28785138,3041.5,3039.4,4.75640549]
[1769030285006,0.32897389,3041.4,3039.9,4.65802064]
[1769030285207,0.00188749,3041.6,3039.9,4.65802064]
[1769030285407,3.28966715,3041.6,3039.9,4.65802064]
[1769030285607,0.00188749,3041.6,3039.9,4.65802064]
[1769030285804,0.00188749,3041.6,3040.1,4.65802064]
[1769030286008,0.00188749,3041.6,3040.2,1.1236968]
[1769030286442,0.00188749,3041.6,3040.2,5.78171744]
[1769030286745,4.83099651,3042.5,3040.2,5.78171744]
[1769030286746,4.83099651,3043.8,3041.5,0.09838485]
[1769030286931,4.83099651,3043.8,3040.8,0.09838485]
[1769030286932,5.41248101,3043.7,3040.8,1.06726225]
[1769030287239,5.31409616,3043.7,3041.3,4.65802064]
[1769030287544,5.31409616,3043.7,3041.0,0.544]
[1769030287545,4.83099651,3043.2,3041.0,0.544]
[1769030287738,5.32689616,3043.1,3041.1,0.09838485]
[1769030287939,9.85869207,3043.0,3041.1,0.09838485]
[1769030288146,9.85869207,3043.0,3040.9,3.83247913]
[1769030288345,6.57246138,3043.0,3041.1,7.94625458]
[1769030288519,6.57246138,3043.0,3041.2,0.09838485]
[1769030288723,0.7068361,3042.9,3041.3,0.80446876]
[1769030288947,0.7068361,3042.9,3041.3,5.4624894]
[1769030289443,0.7068361,3042.9,3041.4,4.75640549]
[1769030289819,3.28644669,3042.8,3041.4,4.75640549]
[1769030290346,3.28644669,3042.8,3041.5,4.65802064]
[1769030290512,0.72796283,3042.7,3041.6,0.80443617]
[1769030290714,0.72796283,3042.7,3041.6,5.56084166]
[1769030290919,0.020823,3044.6,3041.9,4.65802064]
[1769030291254,0.09838485,3044.3,3043.1,4.65802064]
[1769030291546,0.09838485,3044.3,3042.1,5.34963113]
[1769030291547,0.09838485,3043.7,3042.2,4.65802064]
[1769030291714,0.09838485,3043.5,3042.2,5.1238227]
[1769030291912,3.28579877,3043.4,3042.2,4.65802064]
[1769030292111,0.09838485,3043.1,3041.7,4.65802064]
[1769030292524,6.57159754,3043.4,3041.7,4.65802064]
[1769030292737,0.09838485,3043.1,3041.7,4.65802064]
[1769030293069,0.09838485,3042.5,3041.1,4.65802064]
[1769030293244,0.09838485,3042.9,3041.1,4.65802064]
[1769030293245,4.83099651,3045.2,3042.8,4.65802064]
[1769030293565,4.83099651,3045.2,3042.8,4.63053454]
[1769030293566,3.28461159,3044.5,3042.8,4.63053454]
[1769030293727,0.33054346,3044.4,3042.9,5.12107409]
[1769030293934,3.30533031,3044.6,3043.1,4.65802064]
[1769030294137,6.58983762,3044.6,3043.1,4.65802064]
[1769030294335,9.87434493,3044.6,3043.1,4.65802064]
[1769030295355,0.003,3043.3,3043.1,4.65802064]
[1769030295520,9.87434493,3044.6,3042.9,0.46305345]
[1769030295521,0.002,3044.1,3042.9,0.46305345]
[1769030295850,0.002,3044.1,3042.6,4.65802064]
[1769030295851,0.002,3044.1,3042.6,3.28665442]
[1769030296050,0.002,3044.1,3042.6,4.65802064]
[1769030296846,0.002,3044.1,3042.1,0.09838485]
[1769030297048,0.002,3044.1,3042.1,5.30040549]
[1769030297353,0.002,3044.1,3042.2,5.18806119]
[1769030297748,0.002,3044.1,3042.4,3.28685436]
[1769030298155,0.002,3044.1,3042.5,0.02387337]
[1769030298360,0.002,3044.1,3042.4,0.02387337]
[1769030298659,0.002,3044.1,3042.5,4.65802064]
[1769030298859,0.002,3044.1,3042.6,0.49206206]
[1769030299230,0.002,3044.1,3042.6,5.12621004]
[1769030299530,0.002,3044.1,3042.6,0.4681894]
[1769030299762,0.09838485,3043.6,3041.6,4.65802064]
[1769030300225,0.09838485,3043.2,3041.6,4.65802064]
[1769030300638,0.09838485,3043.2,3041.6,7.94571802]
[1769030300842,0.09838485,3043.2,3041.0,3.83132346]
[1769030300843,0.09838485,3043.2,3041.4,3.28787556]
[1769030301053,0.09838485,3043.2,3041.5,3.61660233]
[1769030301458,9.85707243,3043.5,3041.5,0.32878756]
[1769030301667,9.85707243,3043.5,3041.6,3.28769411]
[1769030301850,9.85707243,3043.5,3041.4,4.65802064]
[1769030302054,0.09838485,3043.2,3041.4,4.65802064]
[1769030302361,9.8583681,3043.1,3041.4,4.65802064]
[1769030302568,0.9956753,3043.0,3040.9,4.65802064]
[1769030302738,0.09838485,3042.8,3040.5,0.001]
[1769030302946,0.700729,3042.8,3040.6,3.28878921]
[1769030303259,0.09838485,3042.4,3040.5,0.46690206]
[1769030303463,0.700729,3042.8,3040.9,3.28849559]
[1769030303773,0.09838485,3042.3,3041.0,0.32884956]
[1769030303980,0.09838485,3042.3,3040.5,0.001]
[1769030304180,6.57418972,3042.2,3040.5,0.001]
[1769030304356,6.57418972,3042.2,3040.5,4.65902064]
[1769030304549,0.65741897,3042.1,3040.6,5.1239227]
[1769030304982,0.75580382,3042.1,3040.6,0.46590206]
[1769030305156,0.75580382,3042.1,3040.5,0.001]
[1769030305978,0.09838485,3041.9,3040.5,0.001]
[1769030306363,6.57505424,3041.8,3040.5,0.001]
[1769030306972,6.57505424,3041.8,3040.8,0.001]
[1769030307277,0.66734391,3041.7,3040.8,0.001]
[1769030308446,6.57548658,3041.6,3040.8,0.001]
[1769030308872,6.57548658,3041.6,3040.5,0.001]
[1769030310374,0.09838485,3041.2,3040.5,0.001]
[1769030310555,3.2880676,3041.3,3040.5,0.001]
[1769030310757,0.66734391,3041.7,3040.5,0.001]
[1769030310975,6.57462194,3042.0,3040.5,0.001]
[1769030311778,3.28731097,3042.0,3040.5,4.98900922]
[1769030312372,0.09838485,3041.6,3040.5,0.001]
[1769030312558,3.38618774,3041.6,3040.5,0.001]
[1769030312879,7.02244789,3041.6,3040.5,0.001]
[1769030313177,3.734645,3041.6,3040.5,0.001]
[1769030314053,7.02244789,3041.6,3040.5,0.001]
[1769030314254,3.734645,3041.6,3040.5,0.001]
[1769030314667,0.09838485,3041.2,3040.5,0.001]
[1769030314881,0.09838485,3041.4,3040.5,0.001]
[1769030315090,0.81046812,3041.4,3040.5,0.001]
[1769030316679,6.5761352,3041.3,3040.5,0.001]
[1769030317385,0.71208327,3041.4,3040.5,0.001]
[1769030317592,0.09838485,3041.9,3040.5,0.001]
[1769030317788,6.67322293,3041.9,3040.5,0.001]
[1769030318682,0.09838485,3041.2,3040.5,0.001]
[1769030318879,0.09838485,3041.0,3040.5,0.001]
[1769030319196,0.77571859,3041.0,3039.6,3.28982812]
[1769030319568,0.77571859,3041.0,3039.6,6.57973468]
[1769030319771,0.67733374,3041.0,3039.6,6.57973468]
[1769030320892,3.96574601,3041.0,3039.6,6.57973468]
[1769030322492,3.96574601,3041.0,3039.6,11.5677439]
[1769030322690,3.96574601,3041.0,3039.8,3.28969011]
[1769030323189,0.09838485,3040.9,3039.7,1.15677439]
[1769030323493,0.09838485,3040.9,3039.5,3.28997842]
[1769030323664,0.09838485,3040.9,3039.4,3.29007094]
[1769030323987,0.09838485,3040.7,3039.2,4.98800922]
[1769030324195,0.09838485,3040.7,3039.2,5.48681014]
[1769030324392,0.09838485,3040.7,3039.2,8.77714557]
[1769030324767,3.28882457,3040.6,3039.3,3.29022069]
[1769030325295,3.28882457,3040.6,3039.2,0.49880092]
[1769030325296,6.57764914,3040.6,3039.2,0.49880092]
[1769030325594,0.33872094,3040.5,3039.2,12.0674799]
[1769030325776,3.28861801,3040.8,3039.3,4.98800922]
[1769030327294,6.57678394,3041.0,3039.4,11.56825532]
[1769030327614,6.67516879,3041.0,3039.4,11.56825532]
[1769030327805,3.28839197,3041.0,3039.4,11.56825532]
[1769030327988,3.28828599,3041.1,3039.5,6.14483475]
[1769030329596,6.57657198,3041.1,3039.6,3.28990656]
[1769030329795,6.57657198,3041.1,3039.6,8.27791578]
[1769030329970,0.09838485,3041.0,3039.6,8.27791578]
[1769030330170,0.77571902,3041.0,3039.7,1.27346499]
[1769030330801,0.77571902,3041.0,3039.7,0.001]
[1769030330802,0.09838485,3040.4,3039.7,0.001]
[1769030331181,0.09838485,3040.8,3039.7,0.001]
[1769030331367,0.09838485,3040.6,3039.7,0.001]
[1769030331898,3.28893274,3040.5,3039.7,0.001]
[1769030332083,3.9565493,3040.5,3039.7,0.001]
[1769030333106,3.96577902,3041.0,3039.7,4.98900922]
[1769030333495,7.25422387,3041.0,3039.7,4.98900922]
[1769030334106,0.09838485,3040.9,3039.7,0.001]
[1769030334298,0.09838485,3040.7,3039.7,0.001]
[1769030334499,0.09838485,3040.5,3039.7,0.001]
[1769030336208,0.33873155,3040.4,3039.7,0.001]
[1769030337901,3.28914909,3040.3,3039.7,0.001]
[1769030338486,6.57829818,3040.3,3039.7,0.001]
[1769030338981,3.28914909,3040.3,3039.7,0.001]
[1769030340514,0.33873155,3040.4,3039.7,0.001]
[1769030340719,6.57745664,3040.7,3039.7,0.001]
[1769030341019,3.9657727,3041.0,3039.7,4.6289564]
[1769030341319,0.002,3041.4,3040.0,4.79146737]
[1769030342096,0.002,3041.4,3040.2,4.79146737]
[1769030342514,0.002,3041.4,3039.8,0.56128049]
[1769030342515,0.09838485,3041.1,3040.0,0.001]
[1769030343614,0.09838485,3041.2,3040.0,0.001]
[1769030343818,0.09838485,3040.7,3040.0,0.001]
[1769030344122,0.09838485,3040.5,3040.0,0.001]
[1769030344486,0.09838485,3040.9,3040.0,0.001]
[1769030344487,0.09838485,3041.3,3040.0,0.001]
[1769030344883,0.002,3041.4,3040.0,4.79246737]
[1769030345190,0.002,3041.4,3040.0,4.78914737]
[1769030345686,3.28738724,3042.0,3039.7,0.001]
[1769030345687,0.09838485,3042.3,3040.1,4.79146737]
[1769030346014,3.28709486,3042.2,3040.1,4.79146737]
[1769030346212,0.33854797,3042.1,3040.3,4.79146737]
[1769030346383,0.33854797,3042.1,3040.2,0.47914674]
[1769030346384,3.28731097,3042.0,3040.5,4.79146737]
[1769030346585,0.33854797,3042.1,3040.5,4.79146737]
[1769030347011,0.09838485,3042.5,3040.5,4.79146737]
[1769030347215,3.28865914,3042.7,3040.5,4.79146737]
[1769030348111,0.002,3042.7,3040.7,4.79146737]
[1769030348515,0.002,3042.7,3040.9,4.79146737]
[1769030348817,0.002,3042.7,3041.1,4.79146737]
[1769030348988,0.09838485,3042.6,3041.1,4.79146737]
[1769030349302,0.09838485,3042.4,3041.1,4.79146737]
[1769030349684,0.002,3042.7,3041.1,4.79146737]
[1769030349885,0.09838485,3042.6,3041.1,4.79146737]
[1769030350084,0.09838485,3042.6,3041.2,0.62571966]
[1769030350517,0.002,3042.7,3041.3,11.36760257]
[1769030350702,0.002,3042.7,3041.4,4.79146737]
[1769030351119,3.28855495,3042.7,3041.4,4.79146737]
[1769030351318,0.002,3042.7,3041.4,4.79146737]
[1769030351645,0.002,3042.7,3041.5,1.13676026]
[1769030351803,3.2886247,3042.7,3041.5,1.13676026]
[1769030352008,0.002,3042.7,3041.5,1.13676026]
[1769030352191,0.002,3042.7,3041.5,5.92822763]
[1769030352393,3.28863525,3042.7,3041.5,5.92822763]
[1769030352636,6.91397251,3042.7,3041.6,0.59282276]
[1769030352917,0.09838485,3042.6,3041.1,3.28821771]
[1769030353124,0.09838485,3042.6,3041.1,3.28825988]
[1769030353311,0.09838485,3042.6,3041.0,4.79146737]
[1769030353695,0.09838485,3042.4,3041.0,4.79146737]
[1769030353896,0.09838485,3042.1,3040.5,4.79146737]
[1769030354095,0.09838485,3042.4,3041.0,3.28838247]
[1769030354327,0.09838485,3042.4,3040.8,8.08103308]
[1769030354530,0.09838485,3042.2,3040.8,8.08103308]
[1769030354726,3.28720291,3042.1,3040.8,8.08103308]
[1769030355428,3.28712804,3042.2,3040.8,11.36964134]
[1769030355603,0.3289128,3042.1,3040.9,1.13696413]
[1769030356036,0.3289128,3042.1,3040.9,5.9284315]
[1769030356835,0.3289128,3042.1,3041.0,3.28839197]
[1769030357528,0.002,3042.3,3041.1,4.79146737]
[1769030357734,3.28899564,3042.3,3041.1,4.79146737]
[1769030358030,3.28901382,3042.3,3041.1,4.79146737]
[1769030358201,0.002,3042.3,3041.1,4.79146737]
[1769030358527,3.28899178,3042.3,3041.1,4.79146737]
[1769030358729,3.94656948,3042.3,3041.2,0.80798593]
[1769030358937,3.28899178,3042.3,3041.2,0.80798593]
[1769030359125,0.002,3042.3,3041.2,0.80798593]
[1769030360146,0.09838485,3042.2,3040.9,1.13696413]
[1769030360341,0.09838485,3042.0,3040.8,0.001]
[1769030361210,6.57483808,3041.9,3040.8,0.001]
[1769030361428,0.09838485,3041.7,3040.8,0.001]
[1769030361626,0.76570714,3041.7,3040.8,0.001]
[1769030361860,0.09838485,3041.5,3040.8,0.001]
[1769030363219,3.95499569,3041.7,3040.8,0.001]
[1769030363852,7.24266909,3041.7,3040.8,0.001]
[1769030364219,0.66732229,3041.7,3040.8,0.001]
[1769030364419,6.32,3042.1,3040.8,0.001]
[1769030364651,0.33195515,3042.8,3040.8,4.79246737]
[1769030364652,3.28907136,3042.3,3040.8,4.79246737]
[1769030364863,6.5761277,3042.3,3040.8,4.79246737]
[1769030365025,0.09838485,3042.2,3040.8,4.79246737]
[1769030365230,3.28731097,3042.0,3040.8,5.27171411]
[1769030365643,3.28731097,3042.0,3040.8,8.56028962]
[1769030366051,3.28731097,3042.0,3040.8,5.27171411]
[1769030366247,3.28731097,3042.0,3040.8,8.56030028]
[1769030366448,4.41695714,3042.1,3040.8,8.56030028]
[1769030366652,0.78024656,3042.0,3040.9,1.18490048]
[1769030367077,3.28713978,3042.2,3041.1,0.001]
[1769030367429,0.002,3041.7,3041.1,0.001]
[1769030370049,0.002,3041.7,3040.8,0.001]
[1769030370361,0.09838485,3041.6,3040.8,0.001]
[1769030370560,0.5706722,3041.6,3040.8,0.001]
[1769030370942,4.72087354,3041.2,3039.7,0.001]
[1769030371335,6.57764914,3040.6,3039.7,0.001]
[1769030372730,0.09838485,3040.3,3038.8,4.53111965]
[1769030372969,0.5964335,3040.3,3038.8,7.82182811]
[1769030373130,0.5964335,3040.3,3038.9,3.29065095]
[1769030373331,0.5964335,3040.3,3038.8,4.53111965]
[1769030373530,0.5964335,3040.3,3038.7,0.543]
[1769030373531,0.09838485,3040.1,3038.7,0.543]
[1769030373961,0.09838485,3040.1,3038.7,3.8338703]
[1769030374132,0.66768994,3040.0,3038.8,7.82188762]
[1769030374330,3.28925728,3040.2,3038.8,7.82188762]
[1769030375445,6.57851456,3040.2,3038.8,7.82188762]
[1769030375641,6.57851456,3040.2,3038.8,4.53111965]
[1769030375854,6.57851456,3040.2,3038.8,7.82188586]
[1769030376981,6.57851456,3040.2,3038.8,4.53111965]
[1769030377295,0.70765632,3040.1,3038.8,4.53111965]
[1769030377467,0.70765632,3040.1,3038.8,7.82187432]
[1769030377971,3.99709628,3040.1,3038.8,7.82187432]
[1769030379480,3.99709628,3040.1,3039.1,0.001]
[1769030379682,0.002,3039.9,3039.1,0.001]
[1769030379884,0.40190963,3039.9,3039.1,0.001]
[1769030380081,3.69158383,3039.9,3039.1,0.001]
[1769030380380,6.98125803,3039.9,3039.1,0.001]
[1769030380772,6.98125803,3039.9,3038.4,4.53111965]
[1769030380773,0.09838485,3039.7,3038.4,4.53111965]
[1769030380968,0.09838485,3039.7,3037.2,0.09838485]
[1769030380969,0.09838485,3039.5,3038.0,4.53111965]
[1769030381153,1.51530339,3039.7,3038.5,7.82216192]
[1769030381350,0.40190963,3039.9,3038.8,4.53111965]
[1769030381554,0.40190963,3039.9,3038.8,7.82188035]
[1769030382088,3.69150124,3039.9,3038.8,4.53111965]
[1769030382258,3.69150124,3039.9,3038.8,7.82187877]
[1769030382259,0.40190963,3039.9,3038.8,7.82187877]
[1769030382660,0.40190963,3039.9,3038.8,4.53111965]
[1769030382661,3.69151355,3039.9,3038.8,4.53111965]
[1769030382976,0.36915135,3039.8,3038.8,4.53111965]
[1769030383883,0.36915135,3039.8,3038.0,4.0739204]
[1769030383884,5.15286815,3039.8,3038.1,7.82261813]
[1769030384188,5.15286815,3039.8,3038.2,11.11396475]
[1769030384189,6.57959666,3039.7,3038.2,11.11396475]
[1769030384483,3.65888212,3039.8,3038.3,4.53111965]
[1769030384670,0.002,3039.9,3038.3,5.64251612]
[1769030385261,3.29164332,3039.9,3038.3,5.64251612]
[1769030386952,0.002,3039.9,3038.5,4.53111965]
[1769030387154,0.33113655,3039.9,3038.7,4.53111965]
[1769030388287,0.33113655,3039.9,3038.8,3.29077267]
[1769030389573,3.6207259,3039.9,3038.8,3.29077267]
[1769030389780,3.6207259,3039.9,3038.7,7.82194842]
[1769030389997,0.36207259,3039.8,3038.7,5.75354714]
[1769030390163,0.36207259,3039.8,3038.7,4.53111965]
[1769030390488,6.57959666,3039.7,3038.3,5.64251612]
[1769030390788,0.36207259,3039.8,3038.5,3.2910833]
[1769030390789,3.65180397,3039.8,3038.5,3.2910833]
[1769030391096,0.36207259,3039.8,3038.7,4.53111965]
[1769030391392,0.002,3039.9,3038.8,4.53111965]
[1769030392283,0.002,3039.9,3038.9,6.58132876]
[1769030392486,0.002,3039.9,3039.2,4.53111965]
[1769030395388,0.002,3039.9,3039.1,0.001]
[1769030395587,0.002,3039.9,3039.1,0.65921752]
[1769030396491,0.002,3039.9,3039.2,3.29030703]
[1769030396974,0.002,3039.9,3039.1,0.65921752]
[1769030397174,0.002,3039.9,3039.1,3.94966466]
[1769030397757,0.002,3039.9,3039.1,7.24011248]
[1769030398067,0.002,3039.9,3039.2,5.70824286]
[1769030398767,0.002,3039.9,3039.3,3.2902313]
[1769030400411,0.002,3039.9,3039.2,8.99852689]
[1769030401007,0.002,3039.9,3039.2,5.70824286]
[1769030401879,0.002,3039.9,3039.1,0.001]
[1769030402078,0.002,3039.9,3039.1,3.29138562]
[1769030402314,0.002,3039.9,3039.1,0.001]
[1769030402677,4.71006349,3039.7,3039.1,0.001]
[1769030402881,3.29160861,3039.9,3038.5,4.73088175]
[1769030403084,5.61845403,3039.8,3038.2,8.02224716]
[1769030403378,4.80844834,3039.4,3037.9,8.02261646]
[1769030403797,4.80844834,3039.4,3038.0,3.29161806]
[1769030404083,4.80844834,3039.2,3037.7,3.29190422]
[1769030404295,4.80844834,3039.2,3037.5,4.73088175]
[1769030404582,4.80844834,3039.2,3037.8,8.02270178]
[1769030404786,3.29044782,3039.1,3037.8,8.02270178]
[1769030405182,6.58089564,3039.1,3037.8,4.73088175]
[1769030405382,1.1389344,3039.0,3037.8,4.73088175]
[1769030405883,1.23731925,3039.0,3037.4,4.73088175]
[1769030406196,5.94738274,3039.0,3037.4,8.0231078]
[1769030406395,1.58187262,3038.9,3037.5,3.29216173]
[1769030406604,4.71006349,3038.8,3037.4,4.73088175]
[1769030406809,8.00094445,3038.7,3037.4,8.02315565]
[1769030407116,4.71006349,3038.7,3037.4,11.3154451]
[1769030407292,3.38904671,3039.0,3037.5,5.86242626]
[1769030407293,0.80992624,3038.6,3037.5,5.86242626]
[1769030407622,4.71006349,3038.9,3037.5,5.86242626]
[1769030407838,0.48084483,3039.3,3037.5,5.86242626]
[1769030408115,8.00028368,3039.4,3037.5,5.86242626]
[1769030408983,11.29050387,3039.4,3037.7,4.73088175]
[1769030409184,4.80844834,3039.3,3037.7,4.73088175]
[1769030409386,4.80844834,3039.1,3037.5,3.29214208]
[1769030409809,4.80844834,3039.1,3037.5,11.31520489]
[1769030410203,1.13888887,3039.2,3037.6,4.73088175]
[1769030410410,6.58044038,3039.4,3037.6,4.73088175]
[1769030410790,11.38888872,3039.4,3037.6,4.73088175]
[1769030410988,11.38888872,3039.4,3037.8,4.73088175]
[1769030411295,3.2900148,3039.5,3037.8,4.73088175]
[1769030411500,0.002,3039.6,3037.8,4.73088175]
[1769030411700,0.002,3039.6,3038.0,4.73088175]
[1769030412493,3.2919376,3039.6,3038.0,4.73088175]
[1769030412693,6.5818752,3039.6,3038.0,4.73088175]
[1769030412920,11.29193869,3039.6,3038.0,4.73088175]
[1769030413121,1.12919387,3039.5,3038.2,3.29142255]
[1769030413590,5.83925736,3039.5,3038.1,3.99795326]
[1769030414006,1.12919387,3039.5,3038.2,4.73088175]
[1769030414427,3.2919376,3039.6,3038.2,4.73088175]
[1769030416227,3.2919376,3039.6,3037.8,3.29182106]
[1769030416228,0.09838485,3039.2,3037.9,0.001]
[1769030416394,4.80844834,3039.4,3038.1,3.29148327]
[1769030416597,0.002,3039.2,3038.0,8.02243493]
[1769030417212,0.002,3039.2,3038.1,3.2915073]
[1769030417400,0.002,3039.2,3038.2,3.29141196]
[1769030417749,0.002,3039.2,3038.1,3.29147577]